fUST/lending_fUST_20250901
["ID","MTS","AMOUNT","RATE_DAILY","PERIOD"]
[382574344,1756673250845,-480.0,0.00016553,2]
[382574345,1756673250865,-480.0,0.00016553,2]
[382574346,1756673250886,-480.0,0.00016553,2]
[382574347,1756673250906,-654.74,0.00016553,2]
[382574348,1756673250926,-480.0,0.00016553,2]
[382574349,1756673250947,-874.53,0.00016553,2]
[382574350,1756673250967,-480.0,0.00016553,2]
[382574351,1756673250988,-480.0,0.00016553,2]
[382574352,1756673251009,-480.0,0.00016553,2]
[382574353,1756673251029,-492.47,0.00016553,2]
[382574354,1756673251050,-480.0,0.00016553,2]
[382574355,1756673251070,-480.0,0.00016553,2]
[382574356,1756673251091,-480.0,0.00016553,2]
[382574357,1756673251112,-480.0,0.00016553,2]
[382574358,1756673251133,-480.0,0.00016553,2]
[382574359,1756673251153,-480.66036303,0.00016553,2]
[382574360,1756673251173,-201.02901203,0.00016553,2]
[382574361,1756673251193,-480.0,0.00016553,2]
[382574362,1756673251214,-480.0,0.00016553,2]
[382574363,1756673251235,-480.88289953,0.00016553,2]
[382574364,1756673251257,-1140.31,0.00016554,2]
[382574365,1756673251280,-480.0,0.00016554,2]
[382574366,1756673251303,-480.0,0.00016554,2]
[382574367,1756673251325,-671.74,0.00016554,2]
[382574368,1756673251347,-480.0,0.00016554,2]
[382574369,1756673251368,-354.96544591,0.00016554,2]
[382574370,1756673251389,-480.0,0.00016554,2]
[382574371,1756673251409,-480.0,0.00016554,2]
[382574372,1756673251433,-535.16,0.00016554,2]
[382574373,1756673251453,-480.0,0.00016554,2]
[382574374,1756673251473,-480.0,0.00016554,2]
[382574375,1756673251495,-480.0,0.00016554,2]
[382574376,1756673251516,-577.8,0.00016554,2]
[382574377,1756673251536,-481.42,0.00016554,2]
[382574378,1756673251556,-160.16710454,0.00016554,2]
[382574379,1756673251577,-480.0,0.00016554,2]
[382574380,1756673251596,-151.0,0.00016554,2]
[382574381,1756673251615,-151.0,0.00016554,2]
[382574382,1756673251636,-500.0,0.00016554,2]
[382574383,1756673251657,-151.0,0.00016554,2]
[382574384,1756673251679,-500.0,0.00016554,2]
[382574385,1756673251700,-1311.0,0.00016554,2]
[382574386,1756673251720,-500.0,0.00016554,2]
[382574387,1756673251741,-151.0,0.00016554,2]
[382574388,1756673251762,-151.0,0.00016554,2]
[382574389,1756673251783,-216.52043987,0.00016554,2]
[382574390,1756673251803,-664.91019311,0.00016555,2]
[382574391,1756673251824,-406.8159606,0.00016555,2]
[382574392,1756673251844,-1627.26384239,0.00016555,2]
[382574393,1756673251863,-3657.68230173,0.00016555,2]
[382574394,1756673251884,-477.73055276,0.0001656,2]
[382574395,1756673251904,-1910.92221103,0.0001656,2]
[382574396,1756673251925,-4299.57497483,0.0001656,2]
[382574397,1756673251945,-7636.04515529,0.0001656,2]
[382574398,1756673251966,-2204.66180841,0.0001659,2]
[382574399,1756673251988,-1000.0,0.00016599,2]
[382574400,1756673252011,-1000.0,0.00016599,2]
[382574401,1756673252033,-254.89319191,0.00016599,2]
[382574402,1756673252057,-500.0,0.00016599,2]
[382574403,1756673252081,-500.0,0.00016599,2]
[382574404,1756673252103,-500.0,0.00016599,2]
[382574405,1756673252125,-500.0,0.00016599,2]
[382574406,1756673252146,-500.0,0.00016599,2]
[382574407,1756673252169,-437.75304342,0.00016599,2]
[382574408,1756673252193,-209.40437684,0.00016599,2]
[382574409,1756673252215,-151.0,0.00016599,2]
[382574410,1756673252237,-151.0,0.00016599,2]
[382574411,1756673252259,-151.0,0.00016599,2]
[382574412,1756673252281,-151.0,0.00016599,2]
[382574413,1756673252303,-151.0,0.00016599,2]
[382574414,1756673252324,-151.0,0.00016599,2]
[382574415,1756673252347,-151.0,0.00016599,2]
[382574416,1756673252369,-151.0,0.00016599,2]
[382574417,1756673252394,-151.0,0.00016599,2]
[382574418,1756673252417,-151.0,0.00016599,2]
[382574419,1756673252446,-151.0,0.00016599,2]
[382574420,1756673252470,-151.0,0.000166,2]
[382574421,1756673252491,-2003.25380399,0.000166,2]
[382574422,1756673252513,-1000.86240959,0.00016608,2]
[382574423,1756673252535,-107484.68501871,0.00016609,2]
[382574424,1756673253730,480.0,0.0001655,2]
[382574425,1756673253901,480.0,0.0001655,2]
[382574426,1756673254178,577.04675816,0.0001655,2]
[382574427,1756673254226,480.0,0.0001655,2]
[382574428,1756673254426,480.0,0.0001655,2]
[382574429,1756673256000,480.0,0.0001655,2]
[382574430,1756673258473,479.999999,0.0001655,2]
[382574431,1756673259986,701.86,0.0001655,2]
[382574432,1756673262645,480.0,0.0001655,2]
[382574433,1756673265488,480.0,0.0001655,2]
[382574434,1756673265933,2058.26,0.0001655,2]
[382574435,1756673268845,480.0,0.0001655,2]
[382574436,1756673268877,480.0,0.0001655,2]
[382574437,1756673268986,970.63,0.0001655,2]
[382574439,1756673271312,702.06,0.0001655,2]
[382574440,1756673271445,480.0,0.0001655,2]
[382574441,1756673276927,480.0,0.0001655,2]
[382574442,1756673279242,480.0,0.0001655,2]
[382574443,1756673279500,480.0,0.0001655,2]
[382574444,1756673279806,486.67,0.0001655,2]
[382574445,1756673284374,300.0,0.0001655,2]
[382574446,1756673285755,480.0,0.0001655,2]
[382574447,1756673287432,1574.09,0.0001655,2]
[382574448,1756673287504,480.0,0.0001655,2]
[382574449,1756673287662,1574.09,0.0001655,2]
[382574450,1756673287908,1574.09,0.0001655,2]
[382574451,1756673288086,480.0,0.0001655,2]
[382574452,1756673288455,480.0,0.0001655,2]
[382574453,1756673291159,480.0,0.0001655,2]
[382574454,1756673296156,480.0,0.0001655,2]
[382574456,1756673298721,1184.20604239,0.00016453,2]
[382574457,1756673305373,480.0,0.0001655,2]
[382574458,1756673306942,480.0,0.0001655,2]
[382574459,1756673307388,480.0,0.0001655,2]
[382574460,1756673307833,480.0,0.0001655,2]
[382574461,1756673311437,480.0,0.0001655,2]
[382574462,1756673315211,480.0,0.0001655,2]
[382574463,1756673317915,603.89,0.0001655,2]
[382574464,1756673319704,656.8,0.0001655,2]
[382574465,1756673321259,1008.63,0.0001655,2]
[382574466,1756673322841,480.0,0.0001655,2]
[382574467,1756673326184,480.0,0.0001655,2]
[382574468,1756673327835,480.0,0.0001655,2]
[382574469,1756673329716,803.3,0.0001655,2]
[382574470,1756673331462,1061.84,0.0001655,2]
[382574471,1756673333972,480.0,0.0001655,2]
[382574472,1756673338302,480.0,0.0001655,2]
[382574473,1756673341986,776.56,0.0001655,2]
[382574474,1756673342111,641.26,0.0001655,2]
[382574475,1756673344148,300.0,0.0001655,2]
[382574476,1756673352316,480.0,0.0001655,2]
[382574477,1756673357862,480.0,0.0001655,2]
[382574478,1756673359000,480.0,0.0001655,2]
[382574479,1756673361552,480.0,0.0001655,2]
[382574480,1756673362460,480.0,0.0001655,2]
[382574481,1756673366407,818.38,0.0001655,2]
[382574482,1756673366743,613.27,0.0001655,2]
[382574483,1756673372121,624.48,0.0001655,2]
[382574484,1756673373459,504.19,0.0001655,2]
[382574485,1756673376551,837.05,0.0001655,2]
[382574486,1756673381167,633.12,0.0001655,2]
[382574487,1756673381759,480.0,0.0001655,2]
[382574488,1756673382044,480.0,0.0001655,2]
[382574489,1756673391448,934.65,0.0001655,2]
[382574490,1756673392836,522.7,0.0001655,2]
[382574491,1756673393328,1701.15,0.0001655,2]
[382574492,1756673393597,480.0,0.0001655,2]
[382574493,1756673394143,982.79,0.0001655,2]
[382574494,1756673395440,480.0,0.0001655,2]
[382574495,1756673397651,201.64979696,0.0001655,2]
[382574496,1756673399052,480.0,0.0001655,2]
[382574497,1756673401016,672.08,0.0001655,2]
[382574498,1756673402527,300.0,0.0001655,2]
[382574499,1756673402572,843.17,0.0001655,2]
[382574500,1756673404674,812.0,0.0001655,2]
[382574501,1756673407190,480.0,0.0001655,2]
[382574502,1756673408636,480.0,0.0001655,2]
[382574503,1756673409676,480.0,0.0001655,2]
[382574504,1756673410076,480.0,0.0001655,2]
[382574505,1756673411027,480.0,0.0001655,2]
[382574506,1756673414539,1505.5,0.0001655,2]
[382574507,1756673415722,480.0,0.0001655,2]
[382574508,1756673418327,287.38560881,0.0001655,2]
[382574509,1756673420904,630.56,0.0001655,2]
[382574510,1756673422141,480.0,0.0001655,2]
[382574511,1756673426586,480.0,0.0001655,2]
[382574512,1756673428168,872.42,0.0001655,2]
[382574513,1756673428812,480.0,0.0001655,2]
[382574514,1756673430402,480.0,0.0001655,2]
[382574515,1756673430583,480.0,0.0001655,2]
[382574568,1756673432430,-480.0,0.00016551,2]
[382574570,1756673432439,-480.0,0.00016551,2]
[382574572,1756673432449,-3726.81310496,0.00016551,2]
[382574622,1756673433308,514.38,0.0001655,2]
[382574623,1756673434181,480.0,0.0001655,2]
[382574624,1756673435438,547.67707713,0.0001655,2]
[382574625,1756673437445,480.0,0.0001655,2]
[382574633,1756673438216,-360.899999,0.00016551,2]
[382574946,1756673441564,-1404.27689604,0.00016551,2]
[382574948,1756673441573,-507.06,0.00016551,2]
[382574950,1756673441583,-480.0,0.00016551,2]
[382574952,1756673441592,-4163.29,0.00016551,2]
[382574954,1756673441601,-480.0,0.00016551,2]
[382574956,1756673441611,-1574.09,0.00016551,2]
[382574958,1756673441622,-1574.09,0.00016551,2]
[382574960,1756673441632,-1574.09,0.00016551,2]
[382574962,1756673441641,-1574.09,0.00016551,2]
[382574964,1756673441650,-1574.09,0.00016551,2]
[382574966,1756673441660,-1040.86,0.00016551,2]
[382574968,1756673441670,-484.48,0.00016551,2]
[382574970,1756673441679,-480.0,0.00016551,2]
[382574972,1756673441688,-480.0,0.00016551,2]
[382574974,1756673441698,-1868.72,0.00016551,2]
[382574976,1756673441707,-620.62,0.00016551,2]
[382574978,1756673441717,-480.0,0.00016551,2]
[382574980,1756673441726,-480.0,0.00016551,2]
[382574982,1756673441735,-480.0,0.00016551,2]
[382574984,1756673441745,-480.0,0.00016551,2]
[382574986,1756673441754,-1102.26,0.00016551,2]
[382574988,1756673441765,-480.0,0.00016551,2]
[382574990,1756673441775,-480.0,0.00016551,2]
[382574992,1756673441784,-3885.57,0.00016551,2]
[382574994,1756673441793,-531.27,0.00016551,2]
[382574996,1756673441803,-480.0,0.00016551,2]
[382574998,1756673441812,-480.0,0.00016551,2]
[382575000,1756673441822,-480.0,0.00016551,2]
[382575002,1756673441832,-480.0,0.00016551,2]
[382575004,1756673441842,-480.0,0.00016551,2]
[382575006,1756673441851,-2614.63,0.00016551,2]
[382575008,1756673441861,-480.0,0.00016551,2]
[382575010,1756673441871,-480.0,0.00016551,2]
[382575012,1756673441881,-481.17,0.00016551,2]
[382575014,1756673441890,-822.54,0.00016551,2]
[382575016,1756673441900,-480.0,0.00016551,2]
[382575018,1756673441909,-176.86175535,0.00016551,2]
[382575020,1756673441918,-500.0,0.00016551,2]
[382575022,1756673441928,-350.0,0.00016551,2]
[382575024,1756673441938,-206.95185789,0.00016551,2]
[382575026,1756673441947,-500.0,0.00016551,2]
[382575028,1756673441956,-263.21894781,0.00016551,2]
[382575030,1756673441965,-370.72413342,0.00016551,2]
[382575032,1756673441974,-941.19,0.00016551,2]
[382575034,1756673441983,-480.0,0.00016552,2]
[382575036,1756673441992,-345.62403069,0.00016552,2]
[382575038,1756673442001,-292.30776675,0.00016552,2]
[382575040,1756673442014,-187.69223325,0.00016552,2]
[382575043,1756673442023,-186.55579662,0.00016552,2]
[382575044,1756673442034,-480.0,0.00016552,2]
[382575047,1756673442044,-480.0,0.00016552,2]
[382575048,1756673442055,-559.21,0.00016552,2]
[382575050,1756673442064,-480.0,0.00016552,2]
[382575052,1756673442073,-480.0,0.00016552,2]
[382575054,1756673442083,-630.76,0.00016552,2]
[382575056,1756673442092,-480.0,0.00016552,2]
[382575058,1756673442104,-1574.09,0.00016552,2]
[382575061,1756673442114,-1574.09,0.00016552,2]
[382575063,1756673442124,-480.0,0.00016552,2]
[382575065,1756673442133,-480.0,0.00016552,2]
[382575067,1756673442142,-480.0,0.00016552,2]
[382575069,1756673442151,-480.0,0.00016552,2]
[382575071,1756673442161,-1595.9,0.00016552,2]
[382575072,1756673442172,-480.0,0.00016552,2]
[382575074,1756673442182,-953.75,0.00016552,2]
[382575077,1756673442191,-480.0,0.00016552,2]
[382575079,1756673442201,-555.53,0.00016552,2]
[382575080,1756673442211,-480.0,0.00016552,2]
[382575082,1756673442220,-500.0,0.00016552,2]
[382575084,1756673442229,-480.0,0.00016552,2]
[382575086,1756673442239,-480.0,0.00016552,2]
[382575088,1756673442248,-480.0,0.00016552,2]
[382575090,1756673442259,-545.88,0.00016552,2]
[382575092,1756673442268,-480.0,0.00016552,2]
[382575094,1756673442278,-509.83,0.00016552,2]
[382575096,1756673442287,-480.0,0.00016552,2]
[382575098,1756673442297,-480.0,0.00016552,2]
[382575101,1756673442307,-1156.65,0.00016552,2]
[382575103,1756673442316,-480.0,0.00016552,2]
[382575104,1756673442325,-652.47,0.00016552,2]
[382575106,1756673442335,-480.0,0.00016552,2]
[382575108,1756673442345,-480.0,0.00016552,2]
[382575110,1756673442354,-591.58,0.00016552,2]
[382575112,1756673442363,-481.47,0.00016552,2]
[382575114,1756673442372,-500.0,0.00016553,2]
[382575116,1756673442382,-480.0,0.00016553,2]
[382575118,1756673442391,-518.21017361,0.00016553,2]
[382575120,1756673442401,-567.37918417,0.00016553,2]
[382575122,1756673442411,-1014.15,0.00016553,2]
[382575124,1756673442420,-1014.15,0.00016553,2]
[382575126,1756673442430,-1014.15,0.00016553,2]
[382575128,1756673442440,-1014.15,0.00016553,2]
[382575130,1756673442449,-1014.15,0.00016553,2]
[382575132,1756673442458,-1014.15,0.00016553,2]
[382575134,1756673442468,-480.0,0.00016553,2]
[382575136,1756673442478,-1196.05,0.00016553,2]
[382575139,1756673442487,-480.0,0.00016553,2]
[382575141,1756673442497,-480.0,0.00016553,2]
[382575143,1756673442506,-704.47,0.00016553,2]
[382575145,1756673442516,-500.0,0.00016553,2]
[382575147,1756673442526,-480.0,0.00016553,2]
[382575149,1756673442539,-480.0,0.00016553,2]
[382575151,1756673442549,-480.0,0.00016553,2]
[382575153,1756673442559,-151.0,0.00016554,2]
[382575155,1756673442568,-151.0,0.00016554,2]
[382575157,1756673442578,-151.0,0.00016554,2]
[382575159,1756673442587,-500.0,0.00016554,2]
[382575161,1756673442597,-500.0,0.00016554,2]
[382575163,1756673442606,-151.0,0.00016554,2]
[382575165,1756673442615,-500.0,0.00016554,2]
[382575167,1756673442625,-151.0,0.00016554,2]
[382575169,1756673442635,-151.0,0.00016554,2]
[382575171,1756673442644,-151.0,0.00016554,2]
[382575173,1756673442653,-881.86472338,0.00016555,2]
[382575175,1756673442664,-797.93982,0.00016555,2]
[382575177,1756673442673,-3188.5675207,0.00016555,2]
[382575179,1756673442683,-1574.09,0.00016589,2]
[382575181,1756673442692,-7382.33383184,0.00016599,2]
[382575183,1756673442705,-91146.41931386,0.00016599,2]
[382575185,1756673442715,-1574.09,0.00016608,2]
[382575187,1756673442724,-1574.09,0.00016608,2]
[382575190,1756673442734,-1574.09,0.00016608,2]
[382575192,1756673442743,-1574.09,0.00016608,2]
[382575194,1756673442753,-1574.09,0.00016608,2]
[382575196,1756673442764,-1574.09,0.00016608,2]
[382575198,1756673442774,-1574.09,0.00016608,2]
[382575200,1756673442783,-1574.09,0.00016608,2]
[382575203,1756673442793,-1574.09,0.00016608,2]
[382575205,1756673442803,-1574.09,0.00016608,2]
[382575207,1756673442813,-1574.09,0.00016608,2]
[382575209,1756673442823,-1574.09,0.00016608,2]
[382575211,1756673442832,-1574.10629578,0.00016608,2]
[382575213,1756673442842,-161.93404135,0.00016609,2]
[382575215,1756673442851,-141153.14022439,0.00016609,2]
[382575217,1756673442861,-881.86472336,0.00016666,2]
[382575220,1756673442871,-151.0,0.000167,2]
[382575222,1756673442881,-1014.15,0.00016707,2]
[382575224,1756673442891,-729.42,0.00016708,2]
[382575226,1756673442900,-897.0,0.00016708,2]
[382575228,1756673442910,-867.52,0.00016708,2]
[382575231,1756673442919,-480.0,0.00016708,2]
[382575233,1756673442929,-480.0,0.00016708,2]
[382575235,1756673442938,-480.0,0.00016708,2]
[382575237,1756673442947,-480.0,0.00016708,2]
[382575239,1756673442956,-480.0,0.00016708,2]
[382575241,1756673442966,-480.0,0.00016708,2]
[382575243,1756673442976,-1014.15,0.00016708,2]
[382575245,1756673442985,-1014.15,0.00016708,2]
[382575247,1756673442995,-1014.15,0.00016708,2]
[382575249,1756673443004,-1014.15,0.00016708,2]
[382575252,1756673443013,-1014.15,0.00016708,2]
[382575254,1756673443023,-1014.15,0.00016708,2]
[382575256,1756673443032,-1014.15,0.00016708,2]
[382575258,1756673443042,-1014.15,0.00016708,2]
[382575260,1756673443051,-1014.15,0.00016708,2]
[382575262,1756673443060,-1014.15,0.00016708,2]
[382575264,1756673443069,-1014.15,0.00016708,2]
[382575266,1756673443079,-1014.15,0.00016708,2]
[382575268,1756673443088,-1014.15,0.00016708,2]
[382575270,1756673443099,-1014.15,0.00016708,2]
[382575272,1756673443108,-1014.15,0.00016708,2]
[382575274,1756673443117,-1014.15,0.00016708,2]
[382575276,1756673443127,-1014.30870714,0.00016708,2]
[382575278,1756673443136,-1000.0,0.00016728,2]
[382575280,1756673443146,-451.12823648,0.00016744,2]
[382575282,1756673443155,-881.86472336,0.00016777,2]
[382575284,1756673443164,-151.0,0.000168,2]
[382575286,1756673443175,-151.0,0.000168,2]
[382575288,1756673443186,-151.0,0.000168,2]
[382575290,1756673443197,-151.0,0.000168,2]
[382575292,1756673443206,-500.0,0.000168,2]
[382575294,1756673443216,-199.53515934,0.000168,2]
[382575296,1756673443226,-160.0,0.0001682,2]
[382575298,1756673443236,-160.0,0.0001682,2]
[382575300,1756673443245,-480.0,0.00016824,2]
[382575302,1756673443255,-485.39,0.00016824,2]
[382575304,1756673443264,-480.0,0.00016824,2]
[382575306,1756673443274,-1365.93,0.00016824,2]
[382575308,1756673443284,-480.0,0.00016824,2]
[382575310,1756673443294,-730.45,0.00016824,2]
[382575312,1756673443304,-942.24,0.00016824,2]
[382575314,1756673443314,-962.74,0.00016824,2]
[382575316,1756673443323,-779.31,0.00016824,2]
[382575318,1756673443333,-481.12,0.00016824,2]
[382575320,1756673443342,-493.87,0.00016824,2]
[382575322,1756673443351,-480.0,0.00016824,2]
[382575324,1756673443361,-480.0,0.00016824,2]
[382575326,1756673443370,-583.55,0.00016824,2]
[382575328,1756673443380,-480.0,0.00016824,2]
[382575330,1756673443389,-504.26,0.00016824,2]
[382575332,1756673443399,-724.91,0.00016824,2]
[382575334,1756673443409,-480.0,0.00016824,2]
[382575336,1756673443419,-480.0,0.00016824,2]
[382575338,1756673443428,-480.0,0.00016824,2]
[382575340,1756673443439,-480.0,0.00016824,2]
[382575342,1756673443448,-838.03,0.00016824,2]
[382575344,1756673443457,-480.0,0.00016824,2]
[382575346,1756673443467,-832.52,0.00016824,2]
[382575348,1756673443476,-538.97,0.00016824,2]
[382575350,1756673443486,-480.0,0.00016824,2]
[382575352,1756673443495,-480.0,0.00016824,2]
[382575354,1756673443505,-362.37176543,0.00016824,2]
[382575356,1756673443514,-480.0,0.00016824,2]
[382575358,1756673443524,-480.0,0.00016824,2]
[382575367,1756673443705,-480.0,0.00016824,2]
[382575368,1756673443718,-888.43,0.00016824,2]
[382575369,1756673443728,-584.41,0.00016824,2]
[382575370,1756673443738,-677.01,0.00016824,2]
[382575371,1756673443747,-480.0,0.00016824,2]
[382575372,1756673443757,-1118.76,0.00016824,2]
[382575373,1756673443768,-617.52,0.00016824,2]
[382575374,1756673443778,-480.0,0.00016824,2]
[382575375,1756673443787,-1071.48,0.00016824,2]
[382575376,1756673443797,-480.0,0.00016824,2]
[382575377,1756673443806,-480.0,0.00016824,2]
[382575378,1756673443816,-480.0,0.00016824,2]
[382575379,1756673443826,-480.0,0.00016824,2]
[382575380,1756673443836,-512.57,0.00016824,2]
[382575381,1756673443845,-480.0,0.00016824,2]
[382575382,1756673443855,-701.86,0.00016824,2]
[382575383,1756673443865,-480.0,0.00016824,2]
[382575385,1756673443874,-480.0,0.00016824,2]
[382575387,1756673443884,-2058.26,0.00016824,2]
[382575389,1756673443893,-480.0,0.00016824,2]
[382575391,1756673443902,-480.0,0.00016824,2]
[382575393,1756673443912,-970.63,0.00016824,2]
[382575395,1756673443921,-702.06,0.00016824,2]
[382575397,1756673443930,-480.0,0.00016824,2]
[382575399,1756673443939,-480.0,0.00016824,2]
[382575401,1756673443949,-480.0,0.00016824,2]
[382575403,1756673443959,-480.0,0.00016824,2]
[382575405,1756673443968,-486.67,0.00016824,2]
[382575407,1756673443978,-480.0,0.00016824,2]
[382575409,1756673443987,-480.0,0.00016824,2]
[382575411,1756673443997,-480.0,0.00016824,2]
[382575413,1756673444006,-480.0,0.00016824,2]
[382575415,1756673444015,-480.0,0.00016824,2]
[382575417,1756673444024,-480.0,0.00016824,2]
[382575419,1756673444033,-480.0,0.00016824,2]
[382575421,1756673444043,-480.0,0.00016824,2]
[382575423,1756673444052,-480.0,0.00016824,2]
[382575425,1756673444061,-480.0,0.00016824,2]
[382575427,1756673444071,-480.0,0.00016824,2]
[382575430,1756673444080,-480.0,0.00016824,2]
[382575433,1756673444090,-603.89,0.00016824,2]
[382575436,1756673444100,-656.8,0.00016824,2]
[382575439,1756673444109,-1008.63,0.00016824,2]
[382575441,1756673444119,-480.0,0.00016824,2]
[382575443,1756673444128,-480.0,0.00016824,2]
[382575445,1756673444137,-480.0,0.00016824,2]
[382575447,1756673444146,-803.3,0.00016824,2]
[382575449,1756673444156,-1061.84,0.00016824,2]
[382575451,1756673444166,-480.0,0.00016824,2]
[382575453,1756673444176,-480.0,0.00016824,2]
[382575455,1756673444187,-776.56,0.00016824,2]
[382575457,1756673444196,-641.26,0.00016824,2]
[382575459,1756673444205,-480.0,0.00016824,2]
[382575461,1756673444215,-480.0,0.00016824,2]
[382575463,1756673444224,-480.0,0.00016824,2]
[382575465,1756673444232,-480.0,0.00016824,2]
[382575467,1756673444242,-480.0,0.00016824,2]
[382575469,1756673444251,-818.38,0.00016824,2]
[382575471,1756673444260,-613.27,0.00016824,2]
[382575473,1756673444270,-624.48,0.00016824,2]
[382575475,1756673444279,-504.19,0.00016824,2]
[382575477,1756673444288,-837.05,0.00016824,2]
[382575479,1756673444297,-633.12,0.00016824,2]
[382575481,1756673444307,-480.0,0.00016824,2]
[382575483,1756673444316,-480.0,0.00016824,2]
[382575485,1756673444325,-934.65,0.00016824,2]
[382575487,1756673444335,-522.7,0.00016824,2]
[382575489,1756673444344,-1701.15,0.00016824,2]
[382575491,1756673444353,-480.0,0.00016824,2]
[382575493,1756673444363,-982.79,0.00016824,2]
[382575495,1756673444372,-480.0,0.00016824,2]
[382575497,1756673444381,-480.0,0.00016824,2]
[382575499,1756673444391,-672.08,0.00016824,2]
[382575501,1756673444400,-843.17,0.00016824,2]
[382575503,1756673444409,-480.0,0.00016824,2]
[382575504,1756673444418,-480.0,0.00016824,2]
[382575506,1756673444427,-480.0,0.00016824,2]
[382575508,1756673444437,-1505.5,0.00016824,2]
[382575510,1756673444447,-480.0,0.00016824,2]
[382575512,1756673444455,-630.56,0.00016824,2]
[382575514,1756673444465,-480.0,0.00016824,2]
[382575515,1756673444474,-405.43790405,0.00016824,2]
[382575517,1756673444483,-872.42,0.00016824,2]
[382575519,1756673444492,-480.0,0.00016824,2]
[382575521,1756673444501,-480.0,0.00016824,2]
[382575523,1756673444511,-480.0,0.00016824,2]
[382575525,1756673444521,-514.38,0.00016824,2]
[382575527,1756673444530,-480.0,0.00016824,2]
[382575529,1756673444539,-480.0,0.00016824,2]
[382575531,1756673444549,-480.0,0.00016825,2]
[382575533,1756673444558,-222.43187667,0.00016825,2]
[382575535,1756673444568,-480.0,0.00016825,2]
[382575537,1756673444577,-480.0,0.00016825,2]
[382575539,1756673444586,-480.0,0.00016825,2]
[382575541,1756673444595,-400.0,0.00016825,2]
[382575543,1756673444604,-480.0,0.00016825,2]
[382575545,1756673444613,-480.0,0.00016825,2]
[382575547,1756673444623,-480.0,0.00016825,2]
[382575549,1756673444632,-480.0,0.00016825,2]
[382575551,1756673444643,-480.0,0.00016825,2]
[382575553,1756673444652,-480.0,0.00016825,2]
[382575555,1756673444661,-593.38,0.00016825,2]
[382575557,1756673444670,-480.0,0.00016825,2]
[382575559,1756673444679,-1220.51,0.00016825,2]
[382575560,1756673444689,-480.0,0.00016825,2]
[382575563,1756673444698,-480.0,0.00016825,2]
[382575564,1756673444708,-480.0,0.00016825,2]
[382575567,1756673444718,-1022.86,0.00016825,2]
[382575568,1756673444727,-916.14,0.00016825,2]
[382575570,1756673444737,-480.0,0.00016825,2]
[382575572,1756673444746,-314.23768306,0.00016825,2]
[382575574,1756673444755,-850.93,0.00016825,2]
[382575576,1756673444765,-480.0,0.00016825,2]
[382575578,1756673444774,-480.0,0.00016825,2]
[382575580,1756673444783,-480.0,0.00016825,2]
[382575582,1756673444792,-480.0,0.00016825,2]
[382575584,1756673444802,-480.0,0.00016825,2]
[382575586,1756673444812,-480.0,0.00016825,2]